bitfinex/quotes_BTCUSD_20251221
["timestamp","ask_amount","ask_price","bid_price","bid_amount"]
[1766291641977,0.03974642,88222.0,88221.0,0.00055]
[1766291642327,0.00568,88222.0,88215.0,0.22016]
[1766291643558,0.03974642,88223.0,88222.0,0.00055]
[1766291643764,0.00568,88223.0,88222.0,0.00055]
[1766291644096,0.00568,88223.0,88215.0,0.24509906]
[1766291644097,0.00568,88223.0,88217.0,0.49336]
[1766291644653,0.00513,88223.0,88217.0,0.49336]
[1766291644858,0.00513,88223.0,88217.0,0.2732]
[1766291645808,0.02894075,88226.0,88217.0,0.2732]
[1766291646009,0.02641961,88226.0,88219.0,0.4881]
[1766291646223,0.00568,88227.0,88219.0,0.4881]
[1766291647291,0.00568,88227.0,88220.0,0.01133529]
[1766291647484,0.00568,88227.0,88222.0,0.01133504]
[1766291649555,0.00568,88227.0,88221.0,0.01133516]
[1766291650199,0.03406433,88228.0,88221.0,0.01133516]
[1766291650404,0.03974433,88228.0,88223.0,0.4881]
[1766291650603,0.03974433,88228.0,88223.0,0.49943491]
[1766291650804,0.03974433,88228.0,88223.0,0.4881]
[1766291650981,0.15959208,88239.0,88224.0,0.4881]
[1766291651180,0.15959208,88239.0,88223.0,0.01133491]
[1766291651387,0.03974155,88238.0,88222.0,0.01133504]
[1766291651589,0.03974155,88238.0,88224.0,0.4881]
[1766291653241,0.03974155,88238.0,88224.0,0.49943478]
[1766291653452,0.03974155,88238.0,88225.0,0.01133465]
[1766291653650,0.03974155,88238.0,88226.0,0.01133452]
[1766291653855,0.00568,88238.0,88226.0,0.01133452]
[1766291654056,0.00568,88238.0,88225.0,0.49943465]
[1766291655448,0.00568,88238.0,88226.0,0.01133452]
[1766291655655,0.00568,88238.0,88225.0,0.49943465]
[1766291655786,0.00568,88238.0,88226.0,0.01133452]
[1766291656648,0.00568,88238.0,88227.0,0.01133439]
[1766291659648,0.00568,88238.0,88227.0,0.01140752]
[1766291661367,0.31705197,88237.0,88227.0,7.313e-05]
[1766291662109,0.00568,88238.0,88227.0,7.313e-05]
[1766291662266,0.00568,88238.0,88229.0,0.20567]
[1766291662461,0.00568,88238.0,88229.0,0.4881]
[1766291663799,0.00568,88238.0,88229.0,0.06800425]
[1766291664000,0.00568,88238.0,88230.0,0.22488401]
[1766291664211,0.00568,88238.0,88231.0,0.01133388]
[1766291664648,0.00568,88238.0,88230.0,0.51120401]
[1766291665060,0.00568,88238.0,88230.0,0.49987]
[1766291665269,0.00568,88238.0,88230.0,0.51120401]
[1766291665692,0.00568,88238.0,88230.0,0.49987]
[1766291672461,0.00568,88238.0,88230.0,0.51120401]
[1766291672865,0.00568,88238.0,88230.0,0.49987]
[1766291673931,0.00568,88238.0,88230.0,0.51120401]
[1766291674122,0.00568,88238.0,88230.0,0.49987]
[1766291674831,0.00568,88238.0,88230.0,0.51120401]
[1766291675071,0.00568,88238.0,88230.0,0.49987]
[1766291675462,0.00568,88238.0,88230.0,0.51120401]
[1766291676241,0.00568,88238.0,88230.0,0.49987]
[1766291677242,0.00568,88238.0,88230.0,0.51120401]
[1766291679063,0.00568,88238.0,88230.0,0.49987]
[1766291686969,0.00568,88238.0,88228.0,0.04539458]
[1766291687241,0.00568,88238.0,88229.0,0.47062]
[1766291687814,0.00568,88238.0,88229.0,0.48195414]
[1766291688020,0.00568,88238.0,88229.0,0.47062]
[1766291688225,0.00568,88238.0,88230.0,0.01133401]
[1766291688408,0.00568,88238.0,88230.0,0.48195401]
[1766291689201,0.00568,88238.0,88230.0,0.47062]
[1766291706443,0.63409298,88240.0,88233.0,0.25616]
[1766291706444,0.31704649,88240.0,88233.0,0.25616]
[1766291706619,0.00568,88245.0,88233.0,0.25616]
[1766291706620,0.31704649,88243.0,88233.0,0.25616]
[1766291708567,0.32837883,88243.0,88233.0,0.25616]
[1766291709323,0.31704649,88243.0,88233.0,0.25616]
[1766291709771,0.31704649,88243.0,88230.0,0.03405517]
[1766291709772,0.19531,88242.0,88230.0,0.03405517]
[1766291710026,0.32837883,88243.0,88230.0,0.03405517]
[1766291710027,0.51235649,88240.0,88230.0,0.00568]
[1766291710241,0.52368921,88240.0,88230.0,0.00568]
[1766291710409,0.51235649,88240.0,88230.0,0.00568]
[1766291711322,0.52368921,88240.0,88230.0,0.00568]
[1766291711885,0.32837921,88240.0,88230.0,0.00568]
[1766291712087,0.19531,88239.0,88230.0,0.00568]
[1766291720762,0.0113326,88241.0,88230.0,0.00568]
[1766291722802,0.20664247,88242.0,88230.0,0.00568]
[1766291724532,0.0113326,88241.0,88230.0,0.00568]
[1766291725156,0.01133285,88239.0,88230.0,0.00568]
[1766291727997,0.01133285,88239.0,88227.0,0.03413069]
[1766291727998,0.20862,88238.0,88227.0,0.03413069]
[1766291728240,0.3340075,88240.0,88219.0,0.5440197]
[1766291728241,0.20862,88235.0,88219.0,0.5440197]
[1766291728395,0.20862,88231.0,88220.0,0.00568]
[1766291730160,0.20862,88231.0,88220.0,0.2978]
[1766291735019,0.20862,88231.0,88221.0,0.2779]
[1766291736267,0.00568,88234.0,88221.0,0.2779]
[1766291740793,0.00568,88234.0,88221.0,0.28923516]
[1766291740927,0.00568,88234.0,88221.0,0.2779]
[1766291741129,0.00568,88234.0,88221.0,0.22641516]
[1766291741327,0.00568,88234.0,88222.0,0.2779]
[1766291742096,0.00568,88234.0,88222.0,0.27463809]
[1766291748539,0.005745,88234.0,88222.0,0.27463809]
[1766291749508,0.01707849,88234.0,88222.0,0.27463809]
[1766291749707,0.005745,88234.0,88222.0,0.27463809]
[1766291751289,0.01707849,88234.0,88222.0,0.27463809]
[1766291751502,0.005745,88234.0,88222.0,0.27463809]
[1766291751912,0.005745,88234.0,88223.0,0.2779]
[1766291752448,0.005745,88234.0,88223.0,0.49298]
[1766291755974,0.01707849,88234.0,88223.0,0.49298]
[1766291756175,0.005745,88234.0,88223.0,0.49298]
[1766291756378,0.01707849,88234.0,88223.0,0.49298]
[1766291756677,0.005745,88234.0,88223.0,0.49298]
[1766291756851,0.01707849,88234.0,88223.0,0.49298]
[1766291759051,0.005745,88234.0,88223.0,0.49298]
[1766291759740,0.005745,88234.0,88223.0,0.21508]
[1766291759949,0.005745,88234.0,88224.0,0.2779]
[1766291760930,0.005745,88234.0,88224.0,0.49298]
[1766291762137,0.005745,88234.0,88224.0,0.21508]
[1766291762374,0.005745,88234.0,88225.0,0.28358]
[1766291767727,0.06799448,88243.0,88225.0,0.28358]
[1766291767728,0.00568,88239.0,88229.0,0.01133414]
[1766291768121,0.00568,88239.0,88231.0,0.47084]
[1766291768327,0.00568,88239.0,88230.0,0.00568]
[1766291768524,0.00568,88239.0,88231.0,0.47084]
[1766291768853,0.00568,88239.0,88232.0,0.27598]
[1766291770444,0.00568,88244.0,88232.0,0.27598]
[1766291771155,0.00568,88244.0,88237.0,0.27598]
[1766291771373,0.00568,88244.0,88238.0,0.27598]
[1766291773392,0.0454,88249.0,88238.0,0.27598]
[1766291773592,0.00568,88247.0,88239.0,0.27598]
[1766291775704,0.00237,88247.0,88239.0,0.27598]
[1766291776447,0.00237,88247.0,88240.0,0.19486]
[1766291776652,0.00568,88250.0,88242.0,0.27598]
[1766291782146,0.00568,88250.0,88244.0,0.27598]
[1766291793488,0.01133157,88249.0,88244.0,0.25869585]
[1766291793700,0.0113317,88248.0,88244.0,0.25869585]
[1766291793909,0.01133182,88247.0,88244.0,0.25869585]
[1766291794118,0.01133272,88240.0,88239.0,0.00568]
[1766291794327,0.01133465,88225.0,88221.0,0.19709]
[1766291794549,0.01133439,88227.0,88221.0,0.01139682]
[1766291794770,0.05667456,88223.0,88221.0,6.5e-05]
[1766291795003,0.01133478,88224.0,88221.0,6.5e-05]
[1766291795431,0.20994465,88225.0,88221.0,6.5e-05]
[1766291796097,0.19861,88225.0,88221.0,6.5e-05]
[1766291796307,0.03406379,88227.0,88221.0,6.5e-05]
[1766291796742,0.21562401,88230.0,88221.0,6.5e-05]
[1766291796925,0.03406379,88228.0,88221.0,6.5e-05]
[1766291797220,0.01133414,88229.0,88221.0,6.5e-05]
[1766291798648,0.21562401,88230.0,88221.0,6.5e-05]
[1766291800636,0.20429,88230.0,88221.0,6.5e-05]
[1766291800844,0.00568,88230.0,88221.0,6.5e-05]
[1766291801880,0.01701401,88230.0,88221.0,6.5e-05]
[1766291802037,0.01133414,88229.0,88221.0,6.5e-05]
[1766291803011,0.20994414,88229.0,88221.0,6.5e-05]
[1766291803142,0.01133452,88226.0,88221.0,6.5e-05]
[1766291803545,0.01133439,88227.0,88221.0,6.5e-05]
[1766291803844,0.01133427,88228.0,88221.0,6.5e-05]
[1766291804053,0.01133439,88227.0,88221.0,6.5e-05]
[1766291804480,0.20994439,88227.0,88221.0,6.5e-05]
[1766291805225,0.06800726,88226.0,88221.0,6.5e-05]
[1766291805431,0.01133581,88216.0,88208.0,0.29464379]
[1766291805610,0.01133594,88215.0,88208.0,0.26626]
[1766291805807,0.01133619,88213.0,88208.0,0.26626]
[1766291805988,0.01133606,88214.0,88208.0,0.26626]
[1766291806189,0.01133594,88215.0,88208.0,0.26626]
[1766291806389,0.20994568,88217.0,88208.0,0.26626]
[1766291806968,0.19861,88217.0,88208.0,0.26626]
[1766291820628,0.00568,88220.0,88217.0,0.001099]
[1766291821009,0.00568,88220.0,88214.0,0.26058]
[1766291821814,0.005131,88220.0,88214.0,0.26058]
[1766291822014,0.005131,88220.0,88215.0,0.26058]
[1766291822628,2.69e-06,88220.0,88217.0,0.26058]
[1766291823002,2.69e-06,88220.0,88219.0,0.26058]
[1766291824333,0.00568,88224.0,88219.0,0.25728]
[1766291824449,0.00568,88224.0,88213.0,0.2069]
[1766291824646,0.20429,88224.0,88211.0,0.07258581]
[1766291825484,0.20429,88224.0,88211.0,0.08392226]
[1766291825686,0.20429,88224.0,88211.0,0.07267111]
[1766291826414,0.20429,88224.0,88212.0,0.25816]
[1766291831178,0.20429,88224.0,88212.0,0.26949632]
[1766291832090,0.20429,88224.0,88212.0,0.25816]
[1766291832581,0.20429,88224.0,88214.0,0.25816]
[1766291832810,0.00568,88224.0,88215.0,0.27176312]
[1766291833016,0.00568,88223.0,88217.0,0.25816]
[1766291833244,0.00568,88225.0,88218.0,0.19227]
[1766291833467,0.00568,88225.0,88219.0,0.25816]
[1766291844445,0.00568,88225.0,88219.0,0.25652866]
[1766291852799,0.00568,88225.0,88221.0,0.45029]
[1766291852976,0.00568,88225.0,88222.0,0.27098]
[1766291855183,0.00568,88230.0,88222.0,0.27098]
[1766291857026,0.00568,88230.0,88223.0,0.01360189]
[1766291857231,0.00568,88230.0,88224.0,0.26382]
[1766291859698,0.00568,88234.0,88224.0,0.26382]
[1766291861948,0.00568,88234.0,88223.0,0.00568]
[1766291861949,0.18426,88233.0,88223.0,0.00568]
[1766291862105,0.000549,88224.0,88223.0,0.00568]
[1766291862513,0.19559362,88233.0,88223.0,0.00568]
[1766291863391,0.01133375,88232.0,88223.0,0.00568]
[1766291863632,0.18426,88233.0,88223.0,0.00568]
[1766291863802,0.19559362,88233.0,88223.0,0.00568]
[1766291865325,0.18426,88233.0,88223.0,0.00568]
[1766291868323,0.19559362,88233.0,88223.0,0.00568]
[1766291868541,0.18426,88233.0,88223.0,0.00568]
[1766291870944,0.19559362,88233.0,88223.0,0.00568]
[1766291872675,0.18426,88233.0,88223.0,0.00568]
[1766291873469,0.19559362,88233.0,88223.0,0.00568]
[1766291874520,0.18426,88233.0,88223.0,0.00568]
[1766291874736,0.18426,88229.0,88223.0,0.005131]
[1766291875161,0.18426,88229.0,88218.0,0.26382]
[1766291875345,0.18426,88229.0,88219.0,0.00568]
[1766291877813,0.19559401,88230.0,88219.0,0.00568]
[1766291878019,0.18426,88228.0,88220.0,0.00568]
[1766291878224,0.18426,88228.0,88217.0,0.00568]
[1766291878624,0.18426,88228.0,88213.0,0.01133619]
[1766291878826,0.18426,88228.0,88216.0,0.00568]
[1766291880498,0.18426,88228.0,88216.0,0.00274385]
[1766291881173,0.01133452,88226.0,88214.0,0.26382]
[1766291881380,0.19559452,88226.0,88216.0,0.00568]
[1766291881537,0.18426,88224.0,88216.0,0.00568]
[1766291881745,0.18426,88223.0,88216.0,0.00568]
[1766291881958,0.19559491,88223.0,88216.0,0.00568]
[1766291882369,0.18426,88223.0,88216.0,0.00568]
[1766291890482,0.18306646,88223.0,88216.0,0.00568]
[1766291895890,0.18306646,88223.0,88214.0,0.26382]
[1766291896096,0.18306646,88223.0,88215.0,0.00568]
[1766291901245,0.01133439,88227.0,88215.0,0.00568]
[1766291901445,0.18285439,88227.0,88215.0,0.00568]
[1766291903477,0.01133452,88226.0,88215.0,0.00568]
[1766291903678,0.18285452,88226.0,88215.0,0.00568]
[1766291904148,0.17152,88226.0,88215.0,0.00568]
[1766291905550,0.18285452,88226.0,88215.0,0.00568]
[1766291911747,0.17152,88226.0,88215.0,0.00568]
[1766291918879,0.17152,88226.0,88216.0,0.24779]
[1766291924023,0.18285452,88226.0,88216.0,0.24779]
[1766291924571,0.01133465,88225.0,88216.0,0.24779]
[1766291926260,0.15345,88225.0,88216.0,0.24779]
[1766291932577,0.16478465,88225.0,88216.0,0.24779]
[1766291934066,0.15345,88225.0,88216.0,0.24779]
[1766291935028,0.16478465,88225.0,88216.0,0.24779]
[1766291936278,0.15345,88225.0,88216.0,0.24779]
[1766291936486,0.16478465,88225.0,88216.0,0.24779]
[1766291937780,0.15345,88225.0,88216.0,0.24779]
[1766291940660,0.03406352,88226.0,88216.0,0.24779]
[1766291948561,0.03406352,88226.0,88217.0,0.1561]
[1766291948740,0.03351352,88226.0,88221.0,0.1561]
[1766291948942,0.03351352,88226.0,88222.0,0.25435]
[1766291949346,0.00568,88228.0,88222.0,0.25435]
[1766291951342,3.52e-06,88230.0,88224.0,0.25435]
[1766291951556,3.52e-06,88230.0,88225.0,0.25435]
[1766291955943,3.52e-06,88230.0,88227.0,0.1561]
[1766291956285,3.52e-06,88230.0,88228.0,0.25435]
[1766291959139,3.52e-06,88230.0,88228.0,0.253801]
[1766291959583,0.03406352,88231.0,88222.0,0.1561]
[1766291959914,0.00568,88234.0,88222.0,0.1561]
[1766291960080,0.03406352,88233.0,88222.0,0.1561]
[1766291961199,0.03406352,88233.0,88223.0,0.25435]
[1766291967012,0.04539714,88233.0,88223.0,0.25435]
[1766291967429,0.01133375,88232.0,88223.0,0.25435]
[1766291967606,0.04539727,88232.0,88223.0,0.25435]
[1766291968848,0.03406352,88232.0,88223.0,0.25435]
[1766291971368,0.03406352,88232.0,88224.0,0.25314]
[1766291982559,0.03406352,88232.0,88220.0,0.00568]
[1766291982560,0.19074352,88232.0,88220.0,0.00568]
[1766291982968,0.20207727,88232.0,88220.0,0.00568]
[1766291983289,0.01133401,88230.0,88220.0,0.00568]
[1766291983428,0.01133388,88231.0,88220.0,0.00568]
[1766291984027,0.01133401,88230.0,88220.0,0.00568]
[1766291984274,0.01133388,88231.0,88220.0,0.00568]
[1766291985615,0.01133414,88229.0,88220.0,0.00568]
[1766291985806,0.01133401,88230.0,88220.0,0.00568]
[1766291986310,0.01133414,88229.0,88220.0,0.00568]
[1766291986690,0.01133401,88230.0,88220.0,0.00568]
[1766291986897,0.01133414,88229.0,88220.0,0.00568]
[1766291987829,0.16801414,88229.0,88220.0,0.00568]
[1766291988417,0.20207766,88229.0,88220.0,0.00568]
[1766291989646,0.19074352,88229.0,88220.0,0.00568]
[1766291992144,0.20207766,88229.0,88220.0,0.00568]
[1766291992306,0.01133427,88228.0,88220.0,0.00568]
[1766291995438,0.03406352,88227.0,88220.0,0.00568]
[1766292023905,0.15668,88229.0,88220.0,0.00568]
[1766292024240,0.03406352,88228.0,88220.0,0.00568]
[1766292055822,0.16801414,88229.0,88220.0,0.00568]
[1766292056872,0.15668,88229.0,88220.0,0.00568]
[1766292057415,0.16801414,88229.0,88220.0,0.00568]
[1766292061071,0.01133427,88228.0,88220.0,0.00568]
[1766292062186,0.01133427,88228.0,88220.0,0.00504416]
[1766292062887,0.01133439,88227.0,88220.0,0.00568]
[1766292063120,0.01133427,88228.0,88220.0,0.00568]
[1766292063319,0.20207766,88229.0,88220.0,0.00568]
[1766292063755,0.19074352,88229.0,88220.0,0.00568]
[1766292063984,0.19074352,88229.0,88218.0,0.24622]
[1766292064160,0.19074352,88229.0,88220.0,0.00568]
[1766292064686,0.15668,88229.0,88220.0,0.00568]
[1766292066774,0.19074352,88229.0,88220.0,0.00568]
[1766292067710,0.01701349,88234.0,88221.0,0.22534]
[1766292067912,0.01133388,88231.0,88221.0,0.22534]
[1766292068682,0.0453974,88231.0,88221.0,0.22534]
[1766292068909,0.01133465,88225.0,88221.0,0.22534]
[1766292069504,0.01133452,88226.0,88221.0,0.22534]
[1766292069757,0.06800517,88229.0,88221.0,0.22534]
[1766292069962,0.01133439,88227.0,88221.0,0.22534]
[1766292071342,0.01133452,88226.0,88221.0,0.22534]
[1766292072188,0.01133465,88225.0,88221.0,0.22534]
[1766292072385,0.01133452,88226.0,88221.0,0.22534]
[1766292073701,0.01133439,88227.0,88221.0,0.22534]
[1766292073986,0.01133427,88228.0,88221.0,0.22534]
[1766292075299,0.01133439,88227.0,88221.0,0.22534]
[1766292076127,0.01133465,88225.0,88221.0,0.22534]
[1766292076360,0.01133491,88223.0,88220.0,0.00568]
[1766292076565,0.01133606,88214.0,88211.0,8.53e-05]
[1766292076768,0.05668098,88213.0,88211.0,0.0057653]
[1766292076898,0.05668098,88213.0,88207.0,0.00568]
[1766292077099,0.16440606,88214.0,88207.0,0.00568]
[1766292077790,0.15307,88214.0,88207.0,0.00568]
[1766292078195,0.15307,88214.0,88203.0,0.23667491]
[1766292078398,0.15307,88214.0,88204.0,0.00568]
[1766292081270,0.01133581,88216.0,88205.0,0.22534]
[1766292081470,0.22108379,88218.0,88205.0,0.22534]
[1766292081709,0.01133581,88216.0,88205.0,0.22534]
[1766292082790,0.16440568,88217.0,88205.0,0.22534]
[1766292083632,0.15307,88217.0,88205.0,0.22534]
[1766292085509,0.16440568,88217.0,88204.0,0.00568]
[1766292085718,0.01133632,88212.0,88204.0,0.00155169]
[1766292085920,0.01133645,88211.0,88204.0,0.00155169]
[1766292086126,0.01133632,88212.0,88204.0,0.00155169]
[1766292086758,0.14028,88213.0,88204.0,0.00155169]
[1766292089198,0.14028,88213.0,88205.0,0.00568]
[1766292111994,0.14028,88213.0,88205.0,0.00513]
[1766292112220,0.15682632,88212.0,88205.0,0.00513]
[1766292112419,0.14549,88212.0,88205.0,0.00513]
[1766292112745,0.15682632,88212.0,88205.0,0.00513]
[1766292113165,0.05669191,88196.0,88194.0,0.00024243]
[1766292113330,0.15682761,88202.0,88195.0,0.00568]
[1766292113947,0.01133786,88200.0,88195.0,0.00568]
[1766292114127,0.01133773,88201.0,88195.0,0.00568]
[1766292114612,0.01133786,88200.0,88195.0,0.00568]
[1766292114818,0.14549,88201.0,88194.0,1e-08]
[1766292115947,0.01133953,88200.0,88194.0,1e-08]
[1766292116770,0.14549,88201.0,88194.0,1e-08]
[1766292119047,0.15682773,88201.0,88194.0,1e-08]
[1766292119924,0.14549,88201.0,88194.0,1e-08]
[1766292122869,0.15682773,88201.0,88194.0,1e-08]
[1766292123129,0.03407528,88200.0,88194.0,1e-08]
[1766292123445,0.04541314,88200.0,88194.0,1e-08]
[1766292123699,0.03407528,88200.0,88194.0,1e-08]
[1766292124136,0.00568,88206.0,88200.0,0.24181]
[1766292124248,0.01133619,88213.0,88200.0,0.24181]
[1766292124249,0.00568,88208.0,88200.0,0.24126]
[1766292124453,0.00568,88209.0,88200.0,0.24126]
[1766292125691,0.01701671,88209.0,88200.0,0.24126]
[1766292127171,0.00568,88209.0,88200.0,0.24126]
[1766292129169,0.01701671,88209.0,88200.0,0.24126]
[1766292129365,0.00568,88209.0,88200.0,0.24126]
[1766292132150,0.01701671,88209.0,88200.0,0.24126]
[1766292132392,0.01133684,88208.0,88200.0,0.24126]
[1766292132588,0.01133696,88207.0,88200.0,0.24126]
[1766292133002,0.01133709,88206.0,88200.0,0.24126]
[1766292133392,0.01141832,88206.0,88200.0,0.24126]
[1766292135078,0.01133735,88204.0,88200.0,0.24126]
[1766292135299,0.01133722,88205.0,88200.0,0.24126]
[1766292135521,0.01133735,88204.0,88200.0,0.24126]
[1766292135732,0.000549,88200.0,88196.0,0.00568]
[1766292135936,0.01133748,88203.0,88196.0,0.00568]
[1766292136356,0.01116585,88204.0,88196.0,0.00568]
[1766292139243,0.01133748,88203.0,88196.0,0.00568]
[1766292139559,0.01116585,88204.0,88196.0,0.00568]
[1766292139757,0.01133735,88204.0,88196.0,0.00568]
[1766292140197,0.01133722,88205.0,88196.0,0.00568]
[1766292142318,0.01133735,88204.0,88196.0,0.00568]
[1766292142957,0.01133722,88205.0,88196.0,0.00568]
[1766292143157,0.15021123,88206.0,88196.0,0.00568]
[1766292143363,0.18606816,88206.0,88196.0,0.00568]
[1766292143609,0.16154832,88206.0,88196.0,0.00568]
[1766292144637,0.01133748,88203.0,88196.0,0.00568]
[1766292144840,0.14595,88202.0,88194.0,1e-08]
[1766292146760,0.15728761,88202.0,88194.0,1e-08]
[1766292147181,0.14595,88202.0,88194.0,1e-08]
[1766292164518,0.00568,88204.0,88194.0,1e-08]
[1766292164668,0.00568,88204.0,88193.0,0.01133876]
[1766292164868,0.00568,88204.0,88197.0,0.23217]
[1766292165215,8.123e-05,88206.0,88199.0,0.23217]
[1766292166380,0.01141832,88206.0,88199.0,0.231621]
[1766292166585,0.01133722,88205.0,88199.0,0.231621]
[1766292167081,0.01133722,88205.0,88196.0,0.31720553]
[1766292168084,0.01141832,88206.0,88196.0,0.31720553]
[1766292168281,0.01133735,88204.0,88196.0,0.31720553]
[1766292170987,0.01133722,88205.0,88196.0,0.31720553]
[1766292175189,0.16005722,88205.0,88196.0,0.31720553]
[1766292176634,0.01133735,88204.0,88196.0,0.31720553]
[1766292178153,0.01133735,88204.0,88194.0,0.23217]
[1766292178353,0.16005722,88205.0,88194.0,0.23217]
[1766292178769,0.01133735,88204.0,88194.0,0.23217]
[1766292180570,0.16005722,88205.0,88194.0,0.23217]
[1766292180832,0.01133735,88204.0,88194.0,0.23217]
[1766292181214,0.01133748,88203.0,88194.0,0.23217]
[1766292181512,0.01133735,88204.0,88194.0,0.23217]
[1766292181806,0.14872,88203.0,88194.0,0.23217]
[1766292182590,0.06802425,88204.0,88192.0,0.00568]
[1766292182797,0.14872,88201.0,88192.0,0.00568]
[1766292183001,0.16005773,88201.0,88192.0,0.00568]
[1766292183208,0.01133812,88198.0,88192.0,0.00568]
[1766292183618,0.01133825,88197.0,88192.0,0.00568]
[1766292184015,0.01133812,88198.0,88192.0,0.00568]
[1766292184340,0.01133786,88200.0,88192.0,0.00568]
[1766292184669,0.16005786,88200.0,88192.0,0.00568]
[1766292185764,0.01133825,88197.0,88191.0,0.01701709]
[1766292185968,0.01133812,88198.0,88192.0,0.00568]
[1766292186174,0.01133799,88199.0,88192.0,0.00568]
[1766292187417,0.15209799,88199.0,88192.0,0.00568]
[1766292188350,0.07258581,88197.0,88192.0,0.00568]
[1766292190206,0.14076,88199.0,88192.0,0.00568]
[1766292197414,0.08392329,88203.0,88192.0,0.00568]
[1766292197626,0.14076,88202.0,88192.0,0.00568]
[1766292206874,0.15209761,88202.0,88192.0,0.00568]
[1766292211079,0.01133786,88200.0,88192.0,0.00568]
[1766292211518,0.01133773,88201.0,88192.0,0.00568]
[1766292211753,0.15479773,88201.0,88192.0,0.00568]
[1766292211951,0.14346,88201.0,88192.0,0.00568]
[1766292212198,0.15479773,88201.0,88192.0,0.00568]
[1766292213223,0.15479773,88201.0,88188.0,0.23785]
[1766292213524,0.14346,88201.0,88188.0,0.23785]
[1766292213728,0.14346,88201.0,88189.0,0.20569]
[1766292216156,0.07258581,88203.0,88190.0,0.34577]
[1766292216376,0.07258581,88203.0,88191.0,0.20317]
[1766292216738,0.07258581,88203.0,88192.0,0.20317]
[1766292216917,0.07258581,88203.0,88193.0,0.20885]
[1766292220834,0.14021,88202.0,88191.0,0.00568]
[1766292221037,0.14021,88202.0,88191.0,0.00556818]
[1766292221242,0.15154761,88202.0,88191.0,0.00556818]
[1766292225406,0.14021,88201.0,88191.0,0.00556818]
[1766292229998,0.08392329,88203.0,88192.0,0.20317]
[1766292230717,0.01133761,88202.0,88192.0,0.20317]
[1766292231093,0.08392329,88203.0,88192.0,0.20317]
[1766292231478,0.01133761,88202.0,88192.0,0.20317]
[1766292231677,0.08392329,88203.0,88192.0,0.20317]
[1766292233177,0.01133761,88202.0,88192.0,0.20317]
[1766292236408,0.01133748,88203.0,88192.0,0.20317]
[1766292238322,0.01133761,88202.0,88192.0,0.20317]
[1766292239380,0.01133748,88203.0,88192.0,0.20317]
[1766292240644,0.04540934,88204.0,88192.0,0.20317]
[1766292240817,0.01133748,88203.0,88192.0,0.20317]
[1766292241025,0.04540934,88204.0,88192.0,0.20317]
[1766292241237,0.01133748,88203.0,88192.0,0.20317]
[1766292241762,0.01133761,88202.0,88192.0,0.20317]
[1766292241979,0.01133748,88203.0,88192.0,0.20317]
[1766292242289,0.04540934,88204.0,88192.0,0.34577]
[1766292242464,0.01133748,88203.0,88193.0,0.20317]
[1766292243051,0.04540934,88204.0,88193.0,0.20317]
[1766292243659,0.01133748,88203.0,88193.0,0.20317]
[1766292243972,0.04540934,88204.0,88193.0,0.20317]
[1766292244171,0.01133748,88203.0,88193.0,0.20317]
[1766292246198,0.04540934,88204.0,88193.0,0.20317]
[1766292246804,0.01133748,88203.0,88193.0,0.20317]
[1766292247215,0.03407199,88202.0,88193.0,0.20317]
[1766292253165,0.0454096,88202.0,88193.0,0.20317]
[1766292253364,0.03407199,88202.0,88193.0,0.20317]
[1766292253564,0.0454096,88202.0,88193.0,0.20317]
[1766292256222,0.03407199,88202.0,88193.0,0.20317]
[1766292257244,0.0454096,88202.0,88193.0,0.20317]
[1766292257669,0.01133799,88199.0,88193.0,0.20317]
[1766292257880,0.06802853,88199.0,88193.0,0.20317]
[1766292258097,0.01133812,88198.0,88193.0,0.20317]
[1766292258517,0.04540985,88200.0,88193.0,0.20317]
[1766292258729,0.01133761,88202.0,88193.0,0.20317]
[1766292258950,0.04540985,88200.0,88193.0,0.20317]
[1766292260789,0.03407199,88200.0,88193.0,0.20317]
[1766292262002,0.03586456,88205.0,88193.0,0.20317]
[1766292262204,0.01133735,88204.0,88193.0,0.20317]
[1766292262406,0.03407199,88202.0,88193.0,0.20317]
[1766292263786,0.17487199,88202.0,88193.0,0.20317]
[1766292264191,0.1408,88202.0,88193.0,0.20317]
[1766292264397,0.03407199,88201.0,88193.0,0.20317]
[1766292266354,0.03352299,88201.0,88193.0,0.20317]
[1766292267083,0.03352299,88201.0,88194.0,0.2072]
[1766292268267,0.02460791,88206.0,88194.0,0.2072]
[1766292268476,8.123e-05,88206.0,88198.0,0.2072]
[1766292268719,1.99e-06,88205.0,88200.0,0.2072]
[1766292271403,0.02289629,88212.0,88205.0,0.2072]
[1766292271620,0.10319514,88217.0,88206.0,0.2072]
[1766292271825,0.03407091,88211.0,88206.0,0.2072]
[1766292272610,0.03407091,88211.0,88206.0,0.206651]
[1766292273097,0.01133671,88209.0,88200.0,0.44944012]
[1766292273304,0.01133658,88210.0,88200.0,0.31718012]
[1766292273516,0.01133645,88211.0,88200.0,0.44944012]
[1766292273823,0.04540762,88209.0,88200.0,0.44944012]
[1766292274031,0.03407091,88209.0,88200.0,0.44944012]
[1766292274231,0.01133645,88211.0,88200.0,0.44944012]
[1766292275060,0.03407091,88209.0,88200.0,0.44944012]
[1766292275261,0.03407091,88209.0,88201.0,0.21564]
[1766292289654,0.00055,88201.0,88198.0,0.00568]
[1766292289867,0.01133696,88207.0,88198.0,0.00568]
[1766292290072,0.15408696,88207.0,88198.0,0.00568]
[1766292290509,0.14275,88207.0,88198.0,0.00568]
[1766292290719,0.15408696,88207.0,88198.0,0.00568]
[1766292290960,0.14275,88207.0,88198.0,0.00568]
[1766292291321,0.15408696,88207.0,88198.0,0.00568]
[1766292291534,0.01133709,88206.0,88198.0,0.00568]
[1766292292138,0.15408696,88207.0,88198.0,0.00568]
[1766292299070,0.03585955,88206.0,88198.0,0.00568]
[1766292299548,0.02452246,88206.0,88198.0,0.00568]
[1766292301893,0.16727246,88206.0,88198.0,0.00568]
[1766292303688,0.14275,88206.0,88198.0,0.00568]
[1766292306266,0.1672744,88206.0,88198.0,0.00568]
[1766292306467,0.14275,88206.0,88198.0,0.00568]
[1766292308130,0.16727331,88206.0,88198.0,0.00568]
[1766292308950,0.14275,88206.0,88198.0,0.00568]
[1766292310548,0.1672728,88206.0,88198.0,0.00568]
[1766292310724,0.15408709,88206.0,88198.0,0.00568]
[1766292310865,0.14275,88206.0,88198.0,0.00568]